{"text_format":"1","workbook":"xlsx","n_sheets":2,"sheets":["1.2a Template","Sheet3"],"not_rendered":{"charts":0,"images":0,"macros":1,"external_links":0,"defined_names":2,"comments":0,"pivot_tables":0},"unopened":[],"bounds":{"document_bytes":16777216,"sheet_cells":100000,"rows_first":2000,"rows_last":500,"rows_between":2000,"halvings":0,"cell_chars":16384,"cell_head_chars":4096},"cells_cut":0,"cells_raw":0,"read":"whole","date_system":"1900"}

{"sheet":"1.2a Template","index":0,"n_rows":50,"n_cols":9,"rows_kept":50,"cut":false,"hidden":false,"merged":[[5,1,5,6],[7,1,7,6],[10,1,10,6],[34,1,49,1],[32,4,32,5],[33,4,33,5],[12,0,18,0],[21,1,21,6],[25,3,28,3],[23,0,28,0],[34,0,49,0],[32,2,32,3],[33,2,33,3],[25,1,26,1]]}
["2015 ENTERPRISE GREEN COMMUNITIES CRITERIA"]
["SUPPLEMENTAL DOCUMENTATION TEMPLATE"]
["Criteria # 1.2a","Resident Health and Well-Being: Design for Health"]
[null,"Mandatory for all projects"]
[]
[null,"Instructions: Complete the fields marked below. This document is intended to assist project teams pursuing Enterprise Green Communities Ceritification that are using the 2015 Criteria. Once completed, this document may be uploaded with your other project information at the Green Communities Certification Portal: www.enterprisecommunity.org/certification."]
[]
[null,"Note: To read Criteria 1.2a Resident Health and Well-Being: Design for Health in its entirety, please review 2015 Enterprise Green Communities Criteria Manual, which can be found online at www.enterprisecommunity.org/criteria. \nAdditionally, MACROS must be enabled for this document to work correctly."]
[]
[null,"REQUIREMENTS"]
[null,"Identify potential resident health factors and design your project to address resident health and well-being. Using the matrix on the pages 22 and 23, the project team will:\n• Use readily accessible community health data sets and /or community engagement processes and identify at least one relevant Resident Health Campaign (left-hand column) for their project.\n• Indicate which sources of information were used to select the most relevant Resident Health Campaign (complete second column). These may include specific local and regional health data, insights from community meetings or resident surveys, or reports from local health professionals.\n• Identify building design and programming factors that can optimize the health of the residents (column three).\n• Incorporate at least one optional criterion (column four) associated with the selected Resident Health Campaign(s) into project documents.\n"]
[]
["Step 1","Date"]
[null,"Project Name"]
[null,"Project Address"]
[null,"Project City State, ZIP"]
[null,"Contact Name"]
[null,"Contact Email"]
[null,"Contact Phone"]
[]
[null,"SOURCE"]
[null,"In the text fields below, please list the community health data source used to identify resident health factors and explain how the data reviewed led to the selection of the Resident Health Campaign listed below. "]
[]
["Step 2","Source"]
[null,"URL (if available)"]
[null,"How did this data source influence your resident health campaign selection?"]
[]
[]
[]
[]
[null,"RESIDENT HEALTH CAMPAIGNS AND ASSOCIATED CRITERIA MATRIX"]
[null,"Complete the matrix below"]
["Step 3","Column 1. Based on the information indicated in your source above, select the most relevant Resident Health Campaign from the dropdown menu below.","Column 2. Select the building designs and programming features that will be employed to positively impact resident physical and mental health, by selecting the check box next to your building design or programming features below. \n\nNote: Options populate after selecting from dropdown in Column 1.",null,"Column 3. Identify which Green Communities Criteria will be achieved to positively impact the Resident Health Campaign from COLUMN B, by selecting the check box next to the Mandatory and at least ONE Optional Criteria below. \n\nNote: Options populate after selecting from dropdown in Column 1.",null,"Notes\n\nPlease ensure all criteria selected in Column 3 are included in the Intended Methods Section of your application. "]
[null,"RESIDENT HEALTH CAMPAIGNS","BUILDING DESIGNS AND PROGRAMMING THAT INFLUENCE PHYSICAL AND MENTAL HEALTH\n",null,"RELATED CRITERIA",null,"NOTES (if necessary)"]
["Residential Health Campaign 1 (Mandatory)","Select from Dropdown",null,{"$f":"IF($B$35=Sheet3!$A$2,Sheet3!$K$1,IF($B$35=Sheet3!$A$3,Sheet3!$N$1,IF($B$35=Sheet3!$A$4,Sheet3!$Q$1,IF($B$35=Sheet3!$A$5,Sheet3!$T$1,IF($B$35=Sheet3!$A$6,Sheet3!$W$1,\"\")))))","v":""},null,{"$f":"IF($B$35=Sheet3!$A$2,Sheet3!L1,IF($B$35=Sheet3!$A$3,Sheet3!O1,IF($B$35=Sheet3!$A$4,Sheet3!R1,IF($B$35=Sheet3!$A$5,Sheet3!U1,IF($B$35=Sheet3!$A$6,Sheet3!X1,\"\")))))","v":""},null,false,false]
[null,null,null,{"$f":"IF($B$35=Sheet3!$A$2,Sheet3!$K$2,IF($B$35=Sheet3!$A$3,Sheet3!$N$2,IF($B$35=Sheet3!$A$4,Sheet3!$Q$2,IF($B$35=Sheet3!$A$5,Sheet3!$T$2,IF($B$35=Sheet3!$A$6,Sheet3!$W$2,\"\")))))","v":""},null,{"$f":"IF($B$35=Sheet3!$A$2,Sheet3!L2,IF($B$35=Sheet3!$A$3,Sheet3!O2,IF($B$35=Sheet3!$A$4,Sheet3!R2,IF($B$35=Sheet3!$A$5,Sheet3!U2,IF($B$35=Sheet3!$A$6,Sheet3!X2,\"\")))))","v":""},null,false,false]
[null,null,null,{"$f":"IF($B$35=Sheet3!$A$2,Sheet3!K3,IF($B$35=Sheet3!$A$3,Sheet3!N3,IF($B$35=Sheet3!$A$4,Sheet3!Q3,IF($B$35=Sheet3!$A$5,Sheet3!T3,IF($B$35=Sheet3!$A$6,Sheet3!W3,\"\")))))","v":""},null,{"$f":"IF($B$35=Sheet3!$A$2,Sheet3!L3,IF($B$35=Sheet3!$A$3,Sheet3!O3,IF($B$35=Sheet3!$A$4,Sheet3!R3,IF($B$35=Sheet3!$A$5,Sheet3!U3,IF($B$35=Sheet3!$A$6,Sheet3!X3,\"\")))))","v":""},null,false,false]
[null,null,null,{"$f":"IF($B$35=Sheet3!$A$2,Sheet3!K4,IF($B$35=Sheet3!$A$3,Sheet3!N4,IF($B$35=Sheet3!$A$4,Sheet3!Q4,IF($B$35=Sheet3!$A$5,Sheet3!T4,IF($B$35=Sheet3!$A$6,Sheet3!W4,\"\")))))","v":""},null,{"$f":"IF($B$35=Sheet3!$A$2,Sheet3!L4,IF($B$35=Sheet3!$A$3,Sheet3!O4,IF($B$35=Sheet3!$A$4,Sheet3!R4,IF($B$35=Sheet3!$A$5,Sheet3!U4,IF($B$35=Sheet3!$A$6,Sheet3!X4,\"\")))))","v":""},null,false,false]
[null,null,null,{"$f":"IF($B$35=Sheet3!$A$2,Sheet3!K5,IF($B$35=Sheet3!$A$3,Sheet3!N5,IF($B$35=Sheet3!$A$4,Sheet3!Q5,IF($B$35=Sheet3!$A$5,Sheet3!T5,IF($B$35=Sheet3!$A$6,Sheet3!W5,\"\")))))","v":""},null,{"$f":"IF($B$35=Sheet3!$A$2,Sheet3!L5,IF($B$35=Sheet3!$A$3,Sheet3!O5,IF($B$35=Sheet3!$A$4,Sheet3!R5,IF($B$35=Sheet3!$A$5,Sheet3!U5,IF($B$35=Sheet3!$A$6,Sheet3!X5,\"\")))))","v":""},null,false,false]
[null,null,null,{"$f":"IF($B$35=Sheet3!$A$2,Sheet3!K6,IF($B$35=Sheet3!$A$3,Sheet3!N6,IF($B$35=Sheet3!$A$4,Sheet3!Q6,IF($B$35=Sheet3!$A$5,Sheet3!T6,IF($B$35=Sheet3!$A$6,Sheet3!W6,\"\")))))","v":""},null,{"$f":"IF($B$35=Sheet3!$A$2,Sheet3!L6,IF($B$35=Sheet3!$A$3,Sheet3!O6,IF($B$35=Sheet3!$A$4,Sheet3!R6,IF($B$35=Sheet3!$A$5,Sheet3!U6,IF($B$35=Sheet3!$A$6,Sheet3!X6,\"\")))))","v":""},null,false,false]
[null,null,null,{"$f":"IF($B$35=Sheet3!$A$2,Sheet3!K7,IF($B$35=Sheet3!$A$3,Sheet3!N7,IF($B$35=Sheet3!$A$4,Sheet3!Q7,IF($B$35=Sheet3!$A$5,Sheet3!T7,IF($B$35=Sheet3!$A$6,Sheet3!W7,\"\")))))","v":""},null,{"$f":"IF($B$35=Sheet3!$A$2,Sheet3!L7,IF($B$35=Sheet3!$A$3,Sheet3!O7,IF($B$35=Sheet3!$A$4,Sheet3!R7,IF($B$35=Sheet3!$A$5,Sheet3!U7,IF($B$35=Sheet3!$A$6,Sheet3!X7,\"\")))))","v":""},null,false,false]
[null,null,null,{"$f":"IF($B$35=Sheet3!$A$2,Sheet3!K8,IF($B$35=Sheet3!$A$3,Sheet3!N8,IF($B$35=Sheet3!$A$4,Sheet3!Q8,IF($B$35=Sheet3!$A$5,Sheet3!T8,IF($B$35=Sheet3!$A$6,Sheet3!W8,\"\")))))","v":""},null,{"$f":"IF($B$35=Sheet3!$A$2,Sheet3!L8,IF($B$35=Sheet3!$A$3,Sheet3!O8,IF($B$35=Sheet3!$A$4,Sheet3!R8,IF($B$35=Sheet3!$A$5,Sheet3!U8,IF($B$35=Sheet3!$A$6,Sheet3!X8,\"\")))))","v":""},null,false,false]
[null,null,null,{"$f":"IF($B$35=Sheet3!$A$2,Sheet3!K9,IF($B$35=Sheet3!$A$3,Sheet3!N9,IF($B$35=Sheet3!$A$4,Sheet3!Q9,IF($B$35=Sheet3!$A$5,Sheet3!T9,IF($B$35=Sheet3!$A$6,Sheet3!W9,\"\")))))","v":""},null,{"$f":"IF($B$35=Sheet3!$A$2,Sheet3!L9,IF($B$35=Sheet3!$A$3,Sheet3!O9,IF($B$35=Sheet3!$A$4,Sheet3!R9,IF($B$35=Sheet3!$A$5,Sheet3!U9,IF($B$35=Sheet3!$A$6,Sheet3!X9,\"\")))))","v":""},null,false,false]
[null,null,null,{"$f":"IF($B$35=Sheet3!$A$2,Sheet3!K10,IF($B$35=Sheet3!$A$3,Sheet3!N10,IF($B$35=Sheet3!$A$4,Sheet3!Q10,IF($B$35=Sheet3!$A$5,Sheet3!T10,IF($B$35=Sheet3!$A$6,Sheet3!W10,\"\")))))","v":""},null,{"$f":"IF($B$35=Sheet3!$A$2,Sheet3!L10,IF($B$35=Sheet3!$A$3,Sheet3!O10,IF($B$35=Sheet3!$A$4,Sheet3!R10,IF($B$35=Sheet3!$A$5,Sheet3!U10,IF($B$35=Sheet3!$A$6,Sheet3!X10,\"\")))))","v":""},null,false,false]
[null,null,null,{"$f":"IF($B$35=Sheet3!$A$2,Sheet3!K11,IF($B$35=Sheet3!$A$3,Sheet3!N11,IF($B$35=Sheet3!$A$4,Sheet3!Q11,IF($B$35=Sheet3!$A$5,Sheet3!T11,IF($B$35=Sheet3!$A$6,Sheet3!W11,\"\")))))","v":""},null,{"$f":"IF($B$35=Sheet3!$A$2,Sheet3!L11,IF($B$35=Sheet3!$A$3,Sheet3!O11,IF($B$35=Sheet3!$A$4,Sheet3!R11,IF($B$35=Sheet3!$A$5,Sheet3!U11,IF($B$35=Sheet3!$A$6,Sheet3!X11,\"\")))))","v":""},null,false,false]
[null,null,null,{"$f":"IF($B$35=Sheet3!$A$2,Sheet3!K12,IF($B$35=Sheet3!$A$3,Sheet3!N12,IF($B$35=Sheet3!$A$4,Sheet3!Q12,IF($B$35=Sheet3!$A$5,Sheet3!T12,IF($B$35=Sheet3!$A$6,Sheet3!W12,\"\")))))","v":""},null,{"$f":"IF($B$35=Sheet3!$A$2,Sheet3!L12,IF($B$35=Sheet3!$A$3,Sheet3!O12,IF($B$35=Sheet3!$A$4,Sheet3!R12,IF($B$35=Sheet3!$A$5,Sheet3!U12,IF($B$35=Sheet3!$A$6,Sheet3!X12,\"\")))))","v":""},null,false,false]
[null,null,null,{"$f":"IF($B$35=Sheet3!$A$2,Sheet3!K13,IF($B$35=Sheet3!$A$3,Sheet3!N13,IF($B$35=Sheet3!$A$4,Sheet3!Q13,IF($B$35=Sheet3!$A$5,Sheet3!T13,IF($B$35=Sheet3!$A$6,Sheet3!W13,\"\")))))","v":""},null,{"$f":"IF($B$35=Sheet3!$A$2,Sheet3!L13,IF($B$35=Sheet3!$A$3,Sheet3!O13,IF($B$35=Sheet3!$A$4,Sheet3!R13,IF($B$35=Sheet3!$A$5,Sheet3!U13,IF($B$35=Sheet3!$A$6,Sheet3!X13,\"\")))))","v":""},null,false,false]
[null,null,null,null,null,{"$f":"IF($B$35=Sheet3!$A$2,Sheet3!L14,IF($B$35=Sheet3!$A$3,Sheet3!O14,IF($B$35=Sheet3!$A$4,Sheet3!R14,IF($B$35=Sheet3!$A$5,Sheet3!U14,IF($B$35=Sheet3!$A$6,Sheet3!X14,\"\")))))","v":""},null,false,false]
[null,null,null,null,null,{"$f":"IF($B$35=Sheet3!$A$2,Sheet3!L15,IF($B$35=Sheet3!$A$3,Sheet3!O15,IF($B$35=Sheet3!$A$4,Sheet3!R15,IF($B$35=Sheet3!$A$5,Sheet3!U15,IF($B$35=Sheet3!$A$6,Sheet3!X15,\"\")))))","v":""},null,false,false]
[null,null,null,null,null,{"$f":"IF($B$35=Sheet3!$A$2,Sheet3!L16,IF($B$35=Sheet3!$A$3,Sheet3!O16,IF($B$35=Sheet3!$A$4,Sheet3!R16,IF($B$35=Sheet3!$A$5,Sheet3!U16,IF($B$35=Sheet3!$A$6,Sheet3!X16,\"\")))))","v":""},null,false,false]

{"sheet":"Sheet3","index":1,"n_rows":80,"n_cols":24,"rows_kept":80,"cut":false,"hidden":true,"merged":[[0,9,12,9],[0,12,15,12],[0,15,12,15],[0,18,13,18],[0,21,6,21],[16,9,28,9],[16,12,31,12],[16,15,28,15],[16,18,29,18],[16,21,22,21],[32,9,44,9],[32,12,47,12],[32,15,44,15],[32,18,45,18],[32,21,38,21],[48,9,60,9],[48,12,63,12],[48,15,60,15],[48,18,61,18],[48,21,54,21],[64,9,76,9],[64,12,79,12],[64,15,76,15],[64,18,77,18],[64,21,70,21]]}
["Select from Dropdown",null,null,null,null,null,null,null,null,"Injury and Accessibility","• Physical accessibility of the site and building","Mandatory Criteria","Asthma and Respiratory Health","• Outdoor air quality","Mandatory Criteria","Cardiovascular Disease, Diabetes (Type II), and Obesity","• Proximity to essential goods and services (e.g., grocery stores, retail, schools, medical care)","Mandatory Criteria","Cancer and Health Outcomes Related to Toxin Exposure (e.g., child development and learning, cognitive function)","• Access to affordable healthy food and water","Mandatory Criteria","Mental Health (depression, anxiety, etc.)","• Views of nature (e.g., natural lighting, green spaces) ","Mandatory Criteria"]
["Injury and Accessibility",null,null,null,null,null,null,null,null,null,"• Mobility","2.5 Proximity to Services ",null,"• Indoor air quality","5.1a–d Building Performance Standard ",null,"• Proximity and access to public transportation ","2.5 Proximity to Services ",null,"• Exposure to toxins: indoor and outdoor","3.1 Environmental Remediation",null,"• Noise levels","2.5 Proximity to Services "]
["Asthma and Respiratory Health",null,null,null,null,null,null,null,null,null,"• Presence of traffic calming measures","Optional Criteria",null,"• Indoor humidity and temperature","5.3 Sizing of Heating and Cooling Equipment ",null,"• Air temperature (avoidance of extreme heat and cold)","2.6 Preservation of and Access to Open Space for Rural/Tribal/Small Towns",null,"• Indoor and outdoor water quality","6.1 Low/No VOC Paints, Coatings and Primers",null,"• Crime levels","2.6 Preservation of and Access to Open Space for Rural/Tribal/Small Towns"]
["Cardiovascular Disease, Diabetes (Type II), and Obesity",null,null,null,null,null,null,null,null,null,"• Speed limits","2.8 Access to Public Transportation ",null,"• Mold","6.7a Environmentally Preferable Flooring",null,"• Air quality","7.12 Active Design: Promoting Physical Activity within the Building ",null,"• Air quality ","6.2 Low/No VOC Adhesives and Sealants",null,"• Access to employment and educational resources","Optional Criteria"]
["Cancer and Health Outcomes Related to Toxin Exposure (e.g. child development and learning cognitive function)",null,null,null,null,null,null,null,null,null,"• Urbanicity","2.9 Improving Connectivity to the Community ",null,"• Plant allergens","7.1 Ventilation ",null,"• Access to safe, affordable places to be active (both indoor and outdoor facilities)","Optional Criteria",null,"• Access to safe, affordable places to be active","7.10 Integrated Pest Management",null,"• Amount and quality of sleep","2.7 Preservation of and Access to Open Space for Rural/Tribal/Small Towns"]
["Mental Health (depression, anxiety, etc…)",null,null,null,null,null,null,null,null,null,"• Social cohesion","2.13 LEED-ND Certification ",null,"• Use of toxic /carcinogenic products (e.g., for cleaning)","7.2 Clothes Dryer Exhaust ",null,"• Physical activity rate","2.7 Preservation of and Access to Open Space",null,"• Healthy food consumption","7.15 Reduce Lead Hazards in Pre-1978 Buildings (Substantial Rehab)",null,"• Social cohesion","7.14 Interior and Outdoor Activity Spaces for Children and Adults"]
[null,null,null,null,null,null,null,null,null,null,"• Access to health/community services and support","7.11a Beyond ADA: Universal Design — New Construction",null,"• Smoking","7.5 Vapor Retarder Strategies ",null,"• Smoking","2.8 Access to Public Transportation ",null,"• Use of toxic/carcinogenic products","8.1 Building O&M Manual and Plan",null,"• Access to affordable mental health providers"," "]
[true,null,null,null,null,null,null,null,null,null,"• Fall prevention features such as stair gates, window guards, handrails, grab bars and improved lighting","7.11b Beyond ADA: Universal Design — Substantial and Moderate Rehab",null,"• Access to affordable chronic disease management services and resources","7.7 Mold Prevention: Water Heaters ",null,"• Access to affordable chronic disease management services and resources","2.9 Improving Connectivity to the Community ",null,"• Access to affordable health screening and treatment ","8.3 Resident Manual",null," "," "]
[null,null,null,null,null,null,null,null,null,null,"• Safety of bicycle environment, infrastructure and facilities"," ",null,"• Presence of pests","7.10 Integrated Pest Management",null,"• Proximity and access to affordable, healthy food","2.12 Access to Fresh, Local Foods ",null," ","Optional Criteria",null," "," "]
[null,null,null,null,null,null,null,null,null,null,"• Outdoor safety and security/crime"," ",null," ","8.1 Building O&M Manual and Plan",null,"• Healthy food consumption","2.13 LEED-ND Certification ",null," ","2.11 Brownfield Site or Adaptive Reuse Building ",null," "," "]
[null,null,null,null,null,null,null,null,null,null,"• Safety of sidewalks and pedestrian environment, infrastructure and facilities"," ",null," ","8.3 Resident Manual",null,"• Walkability","7.13 Active Design: Staircases and Building Circulation ",null," ","2.12 Access to Fresh, Local Foods",null," "," "]
[null,null,null,null,null,null,null,null,null,null,"• Safety of transit and vehicle environment, infrastructure and facilities "," ",null,"  ","Optional Criteria",null," ","7.14 Interior and Outdoor Activity Spaces for Children and Adults ",null," ","3.6 Surface Stormwater Management",null," "," "]
[null,null,null,null,null,null,null,null,null,null,"• Access to affordable transportation services "," ",null," ","6.5 Certified, Salvaged and Engineered Wood Products ",null," ","7.16 Smoke-Free Building",null," ","6.5 Certified, Salvaged and Engineered Wood Products ",null," "," "]
[null,null,null,null,null,null,null,null,null,null,null," ",null," ","6.7b Environmentally Preferable Flooring: Throughout Building",null," "," ",null," ","7.16 Smoke-Free Building",null," "," "]
[null,null,null,null,null,null,null,null,null,null,null," ",null," ","6.10 Asthmagen-Free Materials ",null,null," ",null,null," ",null,null," "]
[null,null,null,null,null,null,null,null,null,null,null," ",null," ","7.16 Smoke-Free Building ",null,null," ",null,null," ",null,null," "]
[null,null,null,null,null,null,null,null,null,"Injury and Accessibility","• Physical accessibility of the site and building","Mandatory Criteria","Asthma and Respiratory Health","• Outdoor air quality","Mandatory Criteria","Cardiovascular Disease, Diabetes (Type II), and Obesity","• Proximity to essential goods and services (e.g., grocery stores, retail, schools, medical care)","Mandatory Criteria","Cancer and Health Outcomes Related to Toxin Exposure (e.g., child development and learning, cognitive function)","• Access to affordable healthy food and water","Mandatory Criteria","Mental Health (depression, anxiety, etc.)","• Views of nature (e.g., natural lighting, green spaces) ","Mandatory Criteria"]
[null,null,null,null,null,null,null,null,null,null,"• Mobility","2.5 Proximity to Services ",null,"• Indoor air quality","5.1a–d Building Performance Standard ",null,"• Proximity and access to public transportation ","2.5 Proximity to Services ",null,"• Exposure to toxins: indoor and outdoor","3.1 Environmental Remediation",null,"• Noise levels","2.5 Proximity to Services "]
[null,null,null,null,null,null,null,null,null,null,"• Presence of traffic calming measures","Optional Criteria",null,"• Indoor humidity and temperature","5.3 Sizing of Heating and Cooling Equipment ",null,"• Air temperature (avoidance of extreme heat and cold)","2.6 Preservation of and Access to Open Space for Rural/Tribal/Small Towns",null,"• Indoor and outdoor water quality","6.1 Low/No VOC Paints, Coatings and Primers",null,"• Crime levels","2.6 Preservation of and Access to Open Space for Rural/Tribal/Small Towns"]
[null,null,null,null,null,null,null,null,null,null,"• Speed limits","2.8 Access to Public Transportation ",null,"• Mold","6.7a Environmentally Preferable Flooring",null,"• Air quality","7.12 Active Design: Promoting Physical Activity within the Building ",null,"• Air quality ","6.2 Low/No VOC Adhesives and Sealants",null,"• Access to employment and educational resources","Optional Criteria"]
[null,null,null,null,null,null,null,null,null,null,"• Urbanicity","2.9 Improving Connectivity to the Community ",null,"• Plant allergens","7.1 Ventilation ",null,"• Access to safe, affordable places to be active (both indoor and outdoor facilities)","Optional Criteria",null,"• Access to safe, affordable places to be active","7.10 Integrated Pest Management",null,"• Amount and quality of sleep","2.7 Preservation of and Access to Open Space for Rural/Tribal/Small Towns"]
[null,null,null,null,null,null,null,null,null,null,"• Social cohesion","2.13 LEED-ND Certification ",null,"• Use of toxic /carcinogenic products (e.g., for cleaning)","7.2 Clothes Dryer Exhaust ",null,"• Physical activity rate","2.7 Preservation of and Access to Open Space",null,"• Healthy food consumption","7.15 Reduce Lead Hazards in Pre-1978 Buildings (Substantial Rehab)",null,"• Social cohesion","7.14 Interior and Outdoor Activity Spaces for Children and Adults"]
[null,null,null,null,null,null,null,null,null,null,"• Access to health/community services and support","7.11a Beyond ADA: Universal Design — New Construction",null,"• Smoking","7.5 Vapor Retarder Strategies ",null,"• Smoking","2.8 Access to Public Transportation ",null,"• Use of toxic/carcinogenic products","8.1 Building O&M Manual and Plan",null,"• Access to affordable mental health providers"," "]
[null,null,null,null,null,null,null,null,null,null,"• Fall prevention features such as stair gates, window guards, handrails, grab bars and improved lighting","7.11b Beyond ADA: Universal Design — Substantial and Moderate Rehab",null,"• Access to affordable chronic disease management services and resources","7.7 Mold Prevention: Water Heaters ",null,"• Access to affordable chronic disease management services and resources","2.9 Improving Connectivity to the Community ",null,"• Access to affordable health screening and treatment ","8.3 Resident Manual",null," "," "]
[null,null,null,null,null,null,null,null,null,null,"• Safety of bicycle environment, infrastructure and facilities"," ",null,"• Presence of pests","7.10 Integrated Pest Management",null,"• Proximity and access to affordable, healthy food","2.12 Access to Fresh, Local Foods ",null," ","Optional Criteria",null," "," "]
[null,null,null,null,null,null,null,null,null,null,"• Outdoor safety and security/crime"," ",null," ","8.1 Building O&M Manual and Plan",null,"• Healthy food consumption","2.13 LEED-ND Certification ",null," ","2.11 Brownfield Site or Adaptive Reuse Building ",null," "," "]
[null,null,null,null,null,null,null,null,null,null,"• Safety of sidewalks and pedestrian environment, infrastructure and facilities"," ",null," ","8.3 Resident Manual",null,"• Walkability","7.13 Active Design: Staircases and Building Circulation ",null," ","2.12 Access to Fresh, Local Foods",null," "," "]
[null,null,null,null,null,null,null,null,null,null,"• Safety of transit and vehicle environment, infrastructure and facilities "," ",null," ","Optional Criteria",null," ","7.14 Interior and Outdoor Activity Spaces for Children and Adults ",null," ","3.6 Surface Stormwater Management",null," "," "]
[null,null,null,null,null,null,null,null,null,null,"• Access to affordable transportation services "," ",null," ","6.5 Certified, Salvaged and Engineered Wood Products ",null," ","7.16 Smoke-Free Building",null," ","6.5 Certified, Salvaged and Engineered Wood Products "," "," "," "]
[null,null,null,null,null,null,null,null,null,null," "," ",null," ","6.7b Environmentally Preferable Flooring: Throughout Building",null," "," ",null," ","7.16 Smoke-Free Building"," "," "," "]
[null,null,null,null,null,null,null,null,null,null," "," ",null," ","6.10 Asthmagen-Free Materials ",null," "," ",null," "," ",null,"  "," "]
[null,null,null,null,null,null,null,null,null,null," "," ",null," ","7.16 Smoke-Free Building ",null," "," ",null," "," ",null," "," "]
[null,null,null,null,null,null,null,null,null,"Injury and Accessibility","• Physical accessibility of the site and building","Mandatory Criteria","Asthma and Respiratory Health","• Outdoor air quality","Mandatory Criteria","Cardiovascular Disease, Diabetes (Type II), and Obesity","• Proximity to essential goods and services (e.g., grocery stores, retail, schools, medical care)","Mandatory Criteria","Cancer and Health Outcomes Related to Toxin Exposure (e.g., child development and learning, cognitive function)","• Access to affordable healthy food and water","Mandatory Criteria","Mental Health (depression, anxiety, etc.)","• Views of nature (e.g., natural lighting, green spaces) ","Mandatory Criteria"]
[null,null,null,null,null,null,null,null,null,null,"• Mobility","2.5 Proximity to Services ",null,"• Indoor air quality","5.1a–d Building Performance Standard ",null,"• Proximity and access to public transportation ","2.5 Proximity to Services ",null,"• Exposure to toxins: indoor and outdoor","3.1 Environmental Remediation",null,"• Noise levels","2.5 Proximity to Services "]
[null,null,null,null,null,null,null,null,null,null,"• Presence of traffic calming measures","Optional Criteria",null,"• Indoor humidity and temperature","5.3 Sizing of Heating and Cooling Equipment ",null,"• Air temperature (avoidance of extreme heat and cold)","2.6 Preservation of and Access to Open Space for Rural/Tribal/Small Towns",null,"• Indoor and outdoor water quality","6.1 Low/No VOC Paints, Coatings and Primers",null,"• Crime levels","2.6 Preservation of and Access to Open Space for Rural/Tribal/Small Towns"]
[null,null,null,null,null,null,null,null,null,null,"• Speed limits","2.8 Access to Public Transportation ",null,"• Mold","6.7a Environmentally Preferable Flooring",null,"• Air quality","7.12 Active Design: Promoting Physical Activity within the Building ",null,"• Air quality ","6.2 Low/No VOC Adhesives and Sealants",null,"• Access to employment and educational resources","Optional Criteria"]
[null,null,null,null,null,null,null,null,null,null,"• Urbanicity","2.9 Improving Connectivity to the Community ",null,"• Plant allergens","7.1 Ventilation ",null,"• Access to safe, affordable places to be active (both indoor and outdoor facilities)","Optional Criteria",null,"• Access to safe, affordable places to be active","7.10 Integrated Pest Management",null,"• Amount and quality of sleep","2.7 Preservation of and Access to Open Space for Rural/Tribal/Small Towns"]
[null,null,null,null,null,null,null,null,null,null,"• Social cohesion","2.13 LEED-ND Certification ",null,"• Use of toxic /carcinogenic products (e.g., for cleaning)","7.2 Clothes Dryer Exhaust ",null,"• Physical activity rate","2.7 Preservation of and Access to Open Space",null,"• Healthy food consumption","7.15 Reduce Lead Hazards in Pre-1978 Buildings (Substantial Rehab)",null,"• Social cohesion","7.14 Interior and Outdoor Activity Spaces for Children and Adults"]
[null,null,null,null,null,null,null,null,null,null,"• Access to health/community services and support","7.11a Beyond ADA: Universal Design — New Construction",null,"• Smoking","7.5 Vapor Retarder Strategies ",null,"• Smoking","2.8 Access to Public Transportation ",null,"• Use of toxic/carcinogenic products","8.1 Building O&M Manual and Plan",null,"• Access to affordable mental health providers"," "]
[null,null,null,null,null,null,null,null,null,null,"• Fall prevention features such as stair gates, window guards, handrails, grab bars and improved lighting","7.11b Beyond ADA: Universal Design — Substantial and Moderate Rehab",null,"• Access to affordable chronic disease management services and resources","7.7 Mold Prevention: Water Heaters ",null,"• Access to affordable chronic disease management services and resources","2.9 Improving Connectivity to the Community ",null,"• Access to affordable health screening and treatment ","8.3 Resident Manual",null," "," "]
[null,null,null,null,null,null,null,null,null,null,"• Safety of bicycle environment, infrastructure and facilities"," ",null,"• Presence of pests","7.10 Integrated Pest Management",null,"• Proximity and access to affordable, healthy food","2.12 Access to Fresh, Local Foods ",null," ","Optional Criteria",null," "," "]
[null,null,null,null,null,null,null,null,null,null,"• Outdoor safety and security/crime"," ",null," ","8.1 Building O&M Manual and Plan",null,"• Healthy food consumption","2.13 LEED-ND Certification ",null," ","2.11 Brownfield Site or Adaptive Reuse Building ",null," "," "]
[null,null,null,null,null,null,null,null,null,null,"• Safety of sidewalks and pedestrian environment, infrastructure and facilities"," ",null," ","8.3 Resident Manual",null,"• Walkability","7.13 Active Design: Staircases and Building Circulation ",null," ","2.12 Access to Fresh, Local Foods",null," "," "]
[null,null,null,null,null,null,null,null,null,null,"• Safety of transit and vehicle environment, infrastructure and facilities "," ",null," ","Optional Criteria",null," ","7.14 Interior and Outdoor Activity Spaces for Children and Adults ",null," ","3.6 Surface Stormwater Management",null," "," "]
[null,null,null,null,null,null,null,null,null,null,"• Access to affordable transportation services "," ",null," ","6.5 Certified, Salvaged and Engineered Wood Products ",null," ","7.16 Smoke-Free Building",null," ","6.5 Certified, Salvaged and Engineered Wood Products ",null," "," "]
[null,null,null,null,null,null,null,null,null,null," "," ",null," ","6.7b Environmentally Preferable Flooring: Throughout Building",null," "," ",null," ","7.16 Smoke-Free Building",null," "," "]
[null,null,null,null,null,null,null,null,null,null," "," ",null," ","6.10 Asthmagen-Free Materials ",null,null," ",null," "," ",null," "," "]
[null,null,null,null,null,null,null,null,null,null," "," ",null," ","7.16 Smoke-Free Building "," "," "," "," "," "," ",null," "," "]
[null,null,null,null,null,null,null,null,null,"Injury and Accessibility","• Physical accessibility of the site and building","Mandatory Criteria","Asthma and Respiratory Health","• Outdoor air quality","Mandatory Criteria","Cardiovascular Disease, Diabetes (Type II), and Obesity","• Proximity to essential goods and services (e.g., grocery stores, retail, schools, medical care)","Mandatory Criteria","Cancer and Health Outcomes Related to Toxin Exposure (e.g., child development and learning, cognitive function)","• Access to affordable healthy food and water","Mandatory Criteria","Mental Health (depression, anxiety, etc.)","• Views of nature (e.g., natural lighting, green spaces) ","Mandatory Criteria"]
[null,null,null,null,null,null,null,null,null,null,"• Mobility","2.5 Proximity to Services ",null,"• Indoor air quality","5.1a–d Building Performance Standard ",null,"• Proximity and access to public transportation ","2.5 Proximity to Services ",null,"• Exposure to toxins: indoor and outdoor","3.1 Environmental Remediation",null,"• Noise levels","2.5 Proximity to Services "]
[null,null,null,null,null,null,null,null,null,null,"• Presence of traffic calming measures","Optional Criteria",null,"• Indoor humidity and temperature","5.3 Sizing of Heating and Cooling Equipment ",null,"• Air temperature (avoidance of extreme heat and cold)","2.6 Preservation of and Access to Open Space for Rural/Tribal/Small Towns",null,"• Indoor and outdoor water quality","6.1 Low/No VOC Paints, Coatings and Primers",null,"• Crime levels","2.6 Preservation of and Access to Open Space for Rural/Tribal/Small Towns"]
[null,null,null,null,null,null,null,null,null,null,"• Speed limits","2.8 Access to Public Transportation ",null,"• Mold","6.7a Environmentally Preferable Flooring",null,"• Air quality","7.12 Active Design: Promoting Physical Activity within the Building ",null,"• Air quality ","6.2 Low/No VOC Adhesives and Sealants",null,"• Access to employment and educational resources","Optional Criteria"]
[null,null,null,null,null,null,null,null,null,null,"• Urbanicity","2.9 Improving Connectivity to the Community ",null,"• Plant allergens","7.1 Ventilation ",null,"• Access to safe, affordable places to be active (both indoor and outdoor facilities)","Optional Criteria",null,"• Access to safe, affordable places to be active","7.10 Integrated Pest Management",null,"• Amount and quality of sleep","2.7 Preservation of and Access to Open Space for Rural/Tribal/Small Towns"]
[null,null,null,null,null,null,null,null,null,null,"• Social cohesion","2.13 LEED-ND Certification ",null,"• Use of toxic /carcinogenic products (e.g., for cleaning)","7.2 Clothes Dryer Exhaust ",null,"• Physical activity rate","2.7 Preservation of and Access to Open Space",null,"• Healthy food consumption","7.15 Reduce Lead Hazards in Pre-1978 Buildings (Substantial Rehab)",null,"• Social cohesion","7.14 Interior and Outdoor Activity Spaces for Children and Adults"]
[null,null,null,null,null,null,null,null,null,null,"• Access to health/community services and support","7.11a Beyond ADA: Universal Design — New Construction",null,"• Smoking","7.5 Vapor Retarder Strategies ",null,"• Smoking","2.8 Access to Public Transportation ",null,"• Use of toxic/carcinogenic products","8.1 Building O&M Manual and Plan",null,"• Access to affordable mental health providers"," "]
[null,null,null,null,null,null,null,null,null,null,"• Fall prevention features such as stair gates, window guards, handrails, grab bars and improved lighting","7.11b Beyond ADA: Universal Design — Substantial and Moderate Rehab",null,"• Access to affordable chronic disease management services and resources","7.7 Mold Prevention: Water Heaters ",null,"• Access to affordable chronic disease management services and resources","2.9 Improving Connectivity to the Community ",null,"• Access to affordable health screening and treatment ","8.3 Resident Manual",null," "," "]
[null,null,null,null,null,null,null,null,null,null,"• Safety of bicycle environment, infrastructure and facilities"," ",null,"• Presence of pests","7.10 Integrated Pest Management",null,"• Proximity and access to affordable, healthy food","2.12 Access to Fresh, Local Foods ",null," ","Optional Criteria",null," "," "]
[null,null,null,null,null,null,null,null,null,null,"• Outdoor safety and security/crime"," ",null," ","8.1 Building O&M Manual and Plan",null,"• Healthy food consumption","2.13 LEED-ND Certification ",null," ","2.11 Brownfield Site or Adaptive Reuse Building ",null," "," "]
[null,null,null,null,null,null,null,null,null,null,"• Safety of sidewalks and pedestrian environment, infrastructure and facilities"," ",null," ","8.3 Resident Manual",null,"• Walkability","7.13 Active Design: Staircases and Building Circulation ",null," ","2.12 Access to Fresh, Local Foods",null," "," "]
[null,null,null,null,null,null,null,null,null,null,"• Safety of transit and vehicle environment, infrastructure and facilities "," ",null," ","Optional Criteria",null," ","7.14 Interior and Outdoor Activity Spaces for Children and Adults ",null," ","3.6 Surface Stormwater Management",null," "," "]
[null,null,null,null,null,null,null,null,null,null,"• Access to affordable transportation services "," ",null," ","6.5 Certified, Salvaged and Engineered Wood Products ",null," ","7.16 Smoke-Free Building",null," ","6.5 Certified, Salvaged and Engineered Wood Products ",null," "," "]
[null,null,null,null,null,null,null,null,null,null," "," ",null," ","6.7b Environmentally Preferable Flooring: Throughout Building",null," "," ",null," ","7.16 Smoke-Free Building",null," "," "]
[null,null,null,null,null,null,null,null,null,null," "," ",null," ","6.10 Asthmagen-Free Materials ",null," "," ",null," "," ",null," "," "]
[null,null,null,null,null,null,null,null,null,null," "," ",null," ","7.16 Smoke-Free Building ",null," "," ",null," "," ",null," "," "]
[null,null,null,null,null,null,null,null,null,"Injury and Accessibility","• Physical accessibility of the site and building","Mandatory Criteria","Asthma and Respiratory Health","• Outdoor air quality","Mandatory Criteria","Cardiovascular Disease, Diabetes (Type II), and Obesity","• Proximity to essential goods and services (e.g., grocery stores, retail, schools, medical care)","Mandatory Criteria","Cancer and Health Outcomes Related to Toxin Exposure (e.g., child development and learning, cognitive function)","• Access to affordable healthy food and water","Mandatory Criteria","Mental Health (depression, anxiety, etc.)","• Views of nature (e.g., natural lighting, green spaces) ","Mandatory Criteria"]
[null,null,null,null,null,null,null,null,null,null,"• Mobility","2.5 Proximity to Services ",null,"• Indoor air quality","5.1a–d Building Performance Standard ",null,"• Proximity and access to public transportation ","2.5 Proximity to Services ",null,"• Exposure to toxins: indoor and outdoor","3.1 Environmental Remediation",null,"• Noise levels","2.5 Proximity to Services "]
[null,null,null,null,null,null,null,null,null,null,"• Presence of traffic calming measures","Optional Criteria",null,"• Indoor humidity and temperature","5.3 Sizing of Heating and Cooling Equipment ",null,"• Air temperature (avoidance of extreme heat and cold)","2.6 Preservation of and Access to Open Space for Rural/Tribal/Small Towns",null,"• Indoor and outdoor water quality","6.1 Low/No VOC Paints, Coatings and Primers",null,"• Crime levels","2.6 Preservation of and Access to Open Space for Rural/Tribal/Small Towns"]
[null,null,null,null,null,null,null,null,null,null,"• Speed limits","2.8 Access to Public Transportation ",null,"• Mold","6.7a Environmentally Preferable Flooring",null,"• Air quality","7.12 Active Design: Promoting Physical Activity within the Building ",null,"• Air quality ","6.2 Low/No VOC Adhesives and Sealants",null,"• Access to employment and educational resources","Optional Criteria"]
[null,null,null,null,null,null,null,null,null,null,"• Urbanicity","2.9 Improving Connectivity to the Community ",null,"• Plant allergens","7.1 Ventilation ",null,"• Access to safe, affordable places to be active (both indoor and outdoor facilities)","Optional Criteria",null,"• Access to safe, affordable places to be active","7.10 Integrated Pest Management",null,"• Amount and quality of sleep","2.7 Preservation of and Access to Open Space for Rural/Tribal/Small Towns"]
[null,null,null,null,null,null,null,null,null,null,"• Social cohesion","2.13 LEED-ND Certification ",null,"• Use of toxic /carcinogenic products (e.g., for cleaning)","7.2 Clothes Dryer Exhaust ",null,"• Physical activity rate","2.7 Preservation of and Access to Open Space",null,"• Healthy food consumption","7.15 Reduce Lead Hazards in Pre-1978 Buildings (Substantial Rehab)",null,"• Social cohesion","7.14 Interior and Outdoor Activity Spaces for Children and Adults"]
[null,null,null,null,null,null,null,null,null,null,"• Access to health/community services and support","7.11a Beyond ADA: Universal Design — New Construction",null,"• Smoking","7.5 Vapor Retarder Strategies ",null,"• Smoking","2.8 Access to Public Transportation ",null,"• Use of toxic/carcinogenic products","8.1 Building O&M Manual and Plan",null,"• Access to affordable mental health providers"," "]
[null,null,null,null,null,null,null,null,null,null,"• Fall prevention features such as stair gates, window guards, handrails, grab bars and improved lighting","7.11b Beyond ADA: Universal Design — Substantial and Moderate Rehab",null,"• Access to affordable chronic disease management services and resources","7.7 Mold Prevention: Water Heaters ",null,"• Access to affordable chronic disease management services and resources","2.9 Improving Connectivity to the Community ",null,"• Access to affordable health screening and treatment ","8.3 Resident Manual",null," "," "]
[null,null,null,null,null,null,null,null,null,null,"• Safety of bicycle environment, infrastructure and facilities"," ",null,"• Presence of pests","7.10 Integrated Pest Management",null,"• Proximity and access to affordable, healthy food","2.12 Access to Fresh, Local Foods ",null," ","Optional Criteria",null," "," "]
[null,null,null,null,null,null,null,null,null,null,"• Outdoor safety and security/crime"," ",null," ","8.1 Building O&M Manual and Plan",null,"• Healthy food consumption","2.13 LEED-ND Certification ",null," ","2.11 Brownfield Site or Adaptive Reuse Building ",null," "," "]
[null,null,null,null,null,null,null,null,null,null,"• Safety of sidewalks and pedestrian environment, infrastructure and facilities"," ",null," ","8.3 Resident Manual",null,"• Walkability","7.13 Active Design: Staircases and Building Circulation ",null," ","2.12 Access to Fresh, Local Foods",null," "," "]
[null,null,null,null,null,null,null,null,null,null,"• Safety of transit and vehicle environment, infrastructure and facilities "," ",null," ","Optional Criteria",null," ","7.14 Interior and Outdoor Activity Spaces for Children and Adults ",null," ","3.6 Surface Stormwater Management",null," "," "]
[null,null,null,null,null,null,null,null,null,null,"• Access to affordable transportation services "," ",null," ","6.5 Certified, Salvaged and Engineered Wood Products ",null," ","7.16 Smoke-Free Building",null," ","6.5 Certified, Salvaged and Engineered Wood Products ",null," "," "]
[null,null,null,null,null,null,null,null,null,null," "," ",null," ","6.7b Environmentally Preferable Flooring: Throughout Building",null," "," ",null," ","7.16 Smoke-Free Building",null," "," "]
[null,null,null,null,null,null,null,null,null,null," "," ",null," ","6.10 Asthmagen-Free Materials ",null," "," ",null," "," ",null," "," "]
[null,null,null,null,null,null,null,null,null,null," "," ",null," ","7.16 Smoke-Free Building ",null," "," ",null," "," ",null," "," "]